fUSD/lending_fUSD_20240804
["ID","MTS","AMOUNT","RATE_DAILY","PERIOD"]
[334169851,1722806999260,-1000.0,0.00033972,30]
[334169852,1722806999289,-50000.0,0.00034,34]
[334169853,1722806999313,-2000.0,0.00034,120]
[334169854,1722806999337,-3600.0,0.00034,35]
[334169855,1722806999361,-5025.33187478,0.00034,120]
[334169856,1722806999385,-662.63,0.00034246,30]
[334169857,1722806999409,-1250.0,0.00034246,120]
[334169858,1722806999438,-187.56666667,0.00034247,120]
[334169859,1722806999465,-151.0,0.00034356,120]
[334169860,1722806999489,-1250.0,0.0003452,30]
[334169861,1722806999514,-1000.0,0.0003452,30]
[334169862,1722806999539,-7455.72456545,0.00034742,120]
[334169863,1722806999564,-1060.44514782,0.00034742,120]
[334169864,1722806999587,-6655.274206,0.000348,30]
[334169865,1722806999611,-150.0,0.00034824,120]
[334169866,1722806999635,-662.63,0.00034931,30]
[334169867,1722806999662,-150.0,0.00034948,120]
[334169868,1722806999692,-50000.0,0.00035,35]
[334169869,1722806999716,-152.27727821,0.00035,120]
[334169870,1722806999739,-269.22634943,0.00035,30]
[334169871,1722806999763,-413.0,0.00035,90]
[334169872,1722806999786,-229.74106861,0.00035,120]
[334169873,1722806999809,-1101.33639319,0.00035,90]
[334169874,1722806999832,-160.0,0.00035,30]
[334169875,1722806999855,-8873.698942,0.00035,30]
[334169876,1722806999878,-1826.96358362,0.00035,30]
[334169877,1722806999902,-200.0,0.00035,30]
[334169878,1722806999928,-250.0,0.00035,30]
[334169879,1722806999951,-658.0,0.00035,120]
[334169880,1722806999975,-500.0,0.00035,120]
[334169881,1722807000000,-300.0,0.00035001,120]
[334169882,1722807000023,-445.70451166,0.00035001,120]
[334169883,1722807000046,-445.70451164,0.00035001,120]
[334169884,1722807000070,-1250.0,0.00035068,120]
[334169885,1722807000093,-1000.0,0.00035068,30]
[334169886,1722807000116,-187.56666667,0.00035096,120]
[334169887,1722807000140,-1250.0,0.00035342,30]
[334169888,1722807000162,-11092.123677,0.000355,30]
[334169889,1722807000188,-13310.548413,0.000356,30]
[334169890,1722807000211,-1201.53391065,0.000356,120]
[334169891,1722807000236,-662.63,0.00035616,30]
[334169892,1722807000261,-1000.0,0.00035616,30]
[334169893,1722807000285,-200.0,0.00035616,60]
[334169894,1722807000310,-150.0,0.00035636,120]
[334169895,1722807000334,-13310.548413,0.000357,30]
[334169896,1722807000358,-15528.973149,0.000358,30]
[334169897,1722807000382,-150.0,0.00035806,120]
[334169898,1722807000405,-151.0,0.00035808,120]
[334169899,1722807000432,-13310.548413,0.0003582,30]
[334169900,1722807000597,-1250.0,0.0003589,120]
[334169901,1722807000621,-187.56666667,0.00035945,120]
[334169902,1722807000648,-50000.0,0.00036,36]
[334169903,1722807000678,-3600.0,0.00036,37]
[334169904,1722807000703,-4079.48907481,0.00036,120]
[334169905,1722807000726,-1000.0,0.00036,120]
[334169906,1722807000755,-648.2659611,0.00036,120]
[334169907,1722807000779,-2000.0,0.00036,120]
[334169908,1722807000805,-3107.5,0.00036114,54]
[334169909,1722807000828,-1250.0,0.00036164,30]
[334169910,1722807000853,-1000.0,0.00036164,30]
[334169911,1722807000878,-150.0,0.00036196,120]
[334169912,1722807000903,-7455.72456545,0.00036242,120]
[334169913,1722807000931,-662.63,0.00036301,30]
[334169914,1722807000955,-205.0,0.0003649,60]
[334169915,1722807000979,-150.0,0.00036683,120]
[334169916,1722807001003,-1250.0,0.00036712,120]
[334169917,1722807001025,-975.40086338,0.00036712,30]
[334169918,1722807001049,-187.56666667,0.00036795,120]
[334169919,1722807001072,-468.87484642,0.00036943,120]
[334169920,1722807001096,-445.70451166,0.00036943,120]
[334169921,1722807001120,-662.63,0.00036986,30]
[334169922,1722807001143,-1250.0,0.00036986,30]
[334169923,1722807001171,-50000.0,0.00037,37]
[334169924,1722807001195,-3600.0,0.00037,38]
[334169925,1722807001220,-150.0,0.00037003,120]
[334169926,1722807001244,-434.02088116,0.00037109,120]
[334169927,1722807001267,-151.0,0.0003726,120]
[334169928,1722807001292,-1250.0,0.00037534,120]
[334169929,1722807001317,-187.56666667,0.00037644,120]
[334169930,1722807001340,-662.63,0.00037671,30]
[334169931,1722807001364,-7455.72456545,0.00037742,120]
[334169932,1722807001390,-150.0,0.0003775,120]
[334169933,1722807001419,-1250.0,0.00037808,30]
[334169934,1722807001446,-230.60999972,0.00037999,120]
[334169935,1722807001477,-50000.0,0.00038,38]
[334169936,1722807001501,-755.62681109,0.00038,120]
[334169937,1722807001526,-3060.55700039,0.00038,30]
[334169938,1722807001549,-686.05553058,0.00038,30]
[334169939,1722807001574,-1400.0,0.00038,120]
[334169940,1722807001599,-2000.0,0.00038,120]
[334169941,1722807001623,-3600.0,0.00038,39]
[334169942,1722807001647,-2251.50219692,0.00038,120]
[334169943,1722807001674,-1450.51647197,0.00038,120]
[334169944,1722807001702,-150.0,0.00038209,120]
[334169945,1722807001727,-662.63,0.00038356,30]
[334169946,1722807001751,-1250.0,0.00038356,120]
[334169947,1722807001776,-1230.62,0.00038356,120]
[334169948,1722807001801,-1230.62,0.00038356,120]
[334169949,1722807001825,-1230.62,0.00038356,120]
[334169950,1722807001849,-1230.62,0.00038356,120]
[334169951,1722807001874,-1230.62,0.00038356,120]
[334169952,1722807001898,-1230.62,0.00038356,120]
[334169953,1722807001927,-1230.62,0.00038356,120]
[334169954,1722807001953,-1230.62,0.00038356,120]
[334169955,1722807001976,-1230.62,0.00038356,120]
[334169956,1722807002001,-1230.62,0.00038356,120]
[334169957,1722807002027,-1230.62,0.00038356,120]
[334169958,1722807002050,-1230.62,0.00038356,120]
[334169959,1722807002074,-1230.62,0.00038356,120]
[334169960,1722807002098,-1230.62,0.00038356,120]
[334169961,1722807002121,-1230.62,0.00038356,120]
[334169962,1722807002145,-1230.62,0.00038356,120]
[334169963,1722807002170,-1230.62,0.00038356,120]
[334169964,1722807002195,-1230.62,0.00038356,120]
[334169965,1722807002219,-1230.62,0.00038356,120]
[334169966,1722807002242,-1230.62,0.00038356,120]
[334169967,1722807002267,-1230.62,0.00038356,120]
[334169968,1722807002293,-1230.62,0.00038356,120]
[334169969,1722807002322,-1230.62,0.00038356,120]
[334169970,1722807002347,-1230.68901117,0.00038356,120]
[334169971,1722807002372,-1632.43,0.00038356,120]
[334169972,1722807002397,-1632.43,0.00038356,120]
[334169973,1722807002423,-1632.43,0.00038356,120]
[334169974,1722807002449,-1632.43,0.00038356,120]
[334169975,1722807002474,-1632.43,0.00038356,120]
[334169976,1722807002498,-1632.43,0.00038356,120]
[334169977,1722807002522,-1632.43,0.00038356,120]
[334169978,1722807002547,-1632.43,0.00038356,120]
[334169979,1722807002571,-1632.43,0.00038356,120]
[334169980,1722807002597,-1632.43,0.00038356,120]
[334169981,1722807002622,-1632.43,0.00038356,120]
[334169982,1722807002648,-1632.43,0.00038356,120]
[334169983,1722807002674,-1632.43,0.00038356,120]
[334169984,1722807002699,-1632.43,0.00038356,120]
[334169985,1722807002725,-1632.43,0.00038356,120]
[334169986,1722807002752,-1632.43,0.00038356,120]
[334169987,1722807002779,-1632.43,0.00038356,120]
[334169988,1722807002805,-1632.43,0.00038356,120]
[334169989,1722807003135,-1632.43,0.00038356,120]
[334169990,1722807003161,-1632.43,0.00038356,120]
[334169991,1722807003188,-1632.43,0.00038356,120]
[334169992,1722807003215,-1632.43,0.00038356,120]
[334169993,1722807003241,-1632.43,0.00038356,120]
[334169994,1722807003268,-1632.66722084,0.00038356,120]
[334169995,1722807003296,-200.0,0.00038356,60]
[334169996,1722807003322,-1000.0,0.00038372,30]
[334169997,1722807003348,-367.9509048,0.000384,33]
[334169998,1722807003373,-187.56666667,0.00038493,120]
[334169999,1722807003399,-1000.0,0.00038547,30]
[334170000,1722807003425,-1250.0,0.0003863,30]
[334170001,1722807003452,-150.0,0.00038696,120]
[334170002,1722807003477,-661.64816683,0.000387,120]
[334170003,1722807003503,-151.0,0.00038712,120]
[334170004,1722807003529,-1000.0,0.00038723,30]
[334170005,1722807003555,-503.94,0.000388,120]
[334170006,1722807003580,-2342.77116377,0.0003888,90]
[334170007,1722807003606,-445.70451166,0.00038886,120]
[334170008,1722807003632,-1000.0,0.00038898,30]
[334170009,1722807003656,-381.43474058,0.000389,30]
[334170010,1722807003684,-1080.76813,0.00038999,120]
[334170011,1722807003712,-50000.0,0.00039,39]
[334170012,1722807003738,-500.0,0.00039,120]
[334170013,1722807003764,-160.0,0.00039,30]
[334170014,1722807003789,-1458.37293112,0.00039,30]
[334170015,1722807003815,-2594.77537551,0.00039,120]
[334170016,1722807003842,-2221.25289877,0.00039,120]
[334170017,1722807003868,-1742.1353908,0.00039,120]
[334170018,1722807003894,-1156.0,0.00039,120]
[334170019,1722807003924,-218.0,0.00039,120]
[334170020,1722807003951,-662.63,0.00039041,30]
[334170021,1722807003976,-1000.0,0.00039073,30]
[334170022,1722807004004,-1250.0,0.00039178,120]
[334170023,1722807004030,-150.0,0.00039212,120]
[334170024,1722807004055,-7455.72456545,0.00039242,120]
[334170025,1722807004081,-1000.0,0.00039248,30]
[334170026,1722807004106,-187.56666667,0.00039342,120]
[334170027,1722807004131,-569.55108137,0.000394,30]
[334170028,1722807004156,-1000.0,0.00039423,30]
[334170029,1722807004183,-1250.0,0.00039452,30]
[334170030,1722807004210,-700.0,0.000395,120]
[334170031,1722807004235,-437.56928693,0.000395,30]
[334170032,1722807004261,-3391.2,0.00039529,74]
[334170033,1722807004286,-1000.0,0.00039599,30]
[334170034,1722807004311,-662.63,0.00039726,30]
[334170035,1722807004336,-1000.0,0.00039774,30]
[334170036,1722807004361,-157.89809961,0.000398,120]
[334170037,1722807004387,-150.0,0.00039869,120]
[334170038,1722807004412,-2755.84691,0.00039898,56]
[334170039,1722807004440,-3000.0,0.00039898,36]
[334170040,1722807004466,-2234.54406342,0.000399,120]
[334170041,1722807004492,-2053.68114481,0.000399,30]
[334170042,1722807004520,-150.0,0.00039938,120]
[334170043,1722807004546,-1000.0,0.00039949,30]
[334170044,1722807004574,-150.0,0.00039961,120]
[334170045,1722807004599,-24257.8982445,0.0003998,30]
[334170046,1722807004624,-403.63912816,0.00039986,90]
[334170047,1722807004649,-122254.93584047,0.00039998,90]
[334170048,1722807004677,-250.0,0.00039999,30]
[334170049,1722807004707,-50000.0,0.0004,30]
[334170050,1722807004736,-50000.0,0.0004,40]
[334170051,1722807004761,-1813.2127836,0.0004,120]
[334170052,1722807004787,-2110.0,0.0004,30]
[334170053,1722807004812,-150.0,0.0004,120]
[334170054,1722807004836,-477.12749073,0.0004,30]
[334170055,1722807004860,-564.93292263,0.0004,120]
[334170056,1722807004884,-2927.42736415,0.0004,30]
[334170057,1722807004911,-1483.73044735,0.0004,30]
[334170058,1722807004937,-701.41925457,0.0004,30]
[334170059,1722807004962,-587.92575054,0.0004,30]
[334170060,1722807005065,-191.08398077,0.0004,120]
[334170061,1722807005090,-415.95918987,0.0004,120]
[334170062,1722807005114,-1779.80405147,0.0004,30]
[334170063,1722807005138,-1000.0,0.0004,120]
[334170064,1722807005163,-13711.17094154,0.0004,45]
[334170065,1722807005197,-1000.0,0.0004,30]
[334170066,1722807005221,-2000.0,0.0004,120]
[334170067,1722807005246,-3000.0,0.0004,90]
[334170068,1722807005271,-2000.0,0.0004,32]
[334170069,1722807005296,-2600.59246194,0.0004,120]
[334170070,1722807005321,-3000.0,0.0004,60]
[334170071,1722807005345,-3064.15,0.0004,120]
[334170072,1722807005369,-626.0,0.0004,30]
[334170073,1722807005394,-11372.78107367,0.0004,30]
[334170074,1722807005418,-166.83931948,0.0004,30]
[334170075,1722807005443,-2006.0,0.0004,120]
[334170076,1722807005472,-2113.0,0.0004,60]
[334170077,1722807005496,-43624.24895066,0.0004,60]
[334170078,1722807005520,-1250.0,0.0004,120]
[334170079,1722807005548,-43476.48871462,0.0004,120]
[334170080,1722807005572,-309.8627953,0.0004,120]
[334170081,1722807005596,-15828.32715059,0.0004,60]
[334170082,1722807005622,-673.68,0.0004,30]
[334170083,1722807005645,-1171.0,0.0004,120]
[334170084,1722807005671,-821.8,0.0004,120]
[334170085,1722807005694,-200.0,0.0004,60]
[334170086,1722807005718,-152.41647197,0.0004,30]
[334170087,1722807005742,-346.81927108,0.0004,120]
[334170088,1722807005767,-393.10760673,0.0004,30]
[334170089,1722807005790,-2251.50219692,0.0004,120]
[334170090,1722807005816,-1450.51647197,0.0004,120]
[334170091,1722807005840,-196.20926734,0.0004,120]
[334170092,1722807005864,-750.0,0.0004,120]
[334170093,1722807005887,-426.248996,0.0004,30]
[334170094,1722807005914,-2104.56,0.0004,120]
[334170095,1722807005940,-3211.63,0.0004,120]
[334170096,1722807005966,-150.0,0.0004,60]
[334170097,1722807005992,-830.29,0.0004,120]
[334170098,1722807006017,-340.59,0.0004,120]
[334170099,1722807006040,-1222.34125236,0.00040073,120]
[334170100,1722807006065,-1000.0,0.00040124,30]
[334170101,1722807006089,-888.30942483,0.00040131,30]
[334170102,1722807006113,-151.0,0.00040164,120]
[334170103,1722807006138,-187.56666667,0.00040192,120]
[334170104,1722807006164,-250.49729628,0.000402,120]
[334170105,1722807006192,-150.0,0.00040231,120]
[334170106,1722807006218,-418.89547598,0.00040258,40]
[334170107,1722807006242,-673.59298206,0.00040258,40]
[334170108,1722807006267,-6011.56114558,0.00040258,40]
[334170109,1722807006291,-1250.0,0.00040273,30]
[334170110,1722807006315,-1000.0,0.00040299,30]
[334170111,1722807006339,-289.06151,0.000403,120]
[334170112,1722807006363,-1168.51533207,0.000403,120]
[334170113,1722807006387,-5000.0,0.000404,120]
[334170114,1722807006411,-662.7132521,0.0004041,30]
[334170115,1722807006438,-1000.0,0.00040475,30]
[334170116,1722807006462,-2110.0,0.000405,30]
[334170117,1722807006486,-2500.0,0.000405,120]
[334170118,1722807006509,-678.5650684,0.000405,120]
[334170119,1722807006533,-900.0,0.000405,120]
[334170120,1722807006559,-150.0,0.00040607,120]
[334170121,1722807006583,-1000.0,0.0004065,30]
[334170122,1722807006607,-7455.72456545,0.00040742,120]
[334170123,1722807006632,-3000.0,0.00040821,120]
[334170124,1722807006656,-2051.95,0.00040821,120]
[334170125,1722807006680,-1250.0,0.00040821,120]
[334170126,1722807006704,-1000.0,0.00040825,30]
[334170127,1722807006727,-445.70451166,0.00040828,120]
[334170128,1722807006751,-12619.28505324,0.0004085,30]
[334170129,1722807006775,-101099.817234,0.000409,30]
[334170130,1722807006802,-50000.0,0.00041,31]
[334170131,1722807006829,-50000.0,0.00041,41]
[334170132,1722807006855,-225.22738079,0.00041,120]
[334170133,1722807006880,-2110.0,0.00041,30]
[334170134,1722807006908,-444762.84072074,0.00041,30]
[334170135,1722807006932,-334.76594617,0.00041,120]
[334170136,1722807006955,-1000.0,0.00041,120]
[334170137,1722807006979,-1000.0,0.00041,120]
[334170138,1722807007006,-1188.876699,0.00041,120]
[334170139,1722807007028,-150.0,0.00041,60]
[334170140,1722807007052,-1770.0,0.00041,120]
[334170141,1722807007077,-3000.0,0.00041,95]
[334170142,1722807007101,-1000.0,0.00041,120]
[334170143,1722807007124,-1000.0,0.00041,120]
[334170144,1722807007148,-1000.0,0.00041,120]
[334170145,1722807007171,-1000.0,0.00041,120]
[334170146,1722807007195,-1000.0,0.00041,120]
[334170147,1722807007218,-1000.0,0.00041,120]
[334170148,1722807007243,-1000.0,0.00041,120]
[334170149,1722807007266,-1000.0,0.00041,120]
[334170150,1722807007289,-1000.0,0.00041,120]
[334170151,1722807007312,-1000.0,0.00041,120]
[334170152,1722807007335,-1000.0,0.00041,120]
[334170153,1722807007358,-864.78,0.00041,120]
[334170154,1722807007382,-1004.02524006,0.00041,120]
[334170155,1722807007406,-1457.43140116,0.00041,120]
[334170156,1722807007430,-21910.21320501,0.00041,30]
[334170157,1722807007454,-454.74143452,0.00041,120]
[334170158,1722807007478,-1000.0,0.00041,30]
[334170159,1722807007502,-187.56666667,0.00041041,120]
[334170160,1722807007525,-1720.94245368,0.00041044,120]
[334170161,1722807007549,-513.5647813,0.00041078,120]
[334170162,1722807007572,-1343.50503733,0.00041095,120]
[334170163,1722807007596,-1250.0,0.00041095,30]
[334170164,1722807007619,-1475.75,0.00041095,120]
[334170165,1722807007779,-1475.75,0.00041095,120]
[334170166,1722807007805,-1475.75,0.00041095,120]
[334170167,1722807007829,-1475.75,0.00041095,120]
[334170168,1722807007853,-1475.75,0.00041095,120]
[334170169,1722807007878,-1475.75,0.00041095,120]
[334170170,1722807007902,-1475.75,0.00041095,120]
[334170171,1722807007930,-1475.75,0.00041095,120]
[334170172,1722807007955,-1475.75,0.00041095,120]
[334170173,1722807007981,-1475.75,0.00041095,120]
[334170174,1722807008009,-1475.75,0.00041095,120]
[334170175,1722807008034,-1475.75,0.00041095,120]
[334170176,1722807008060,-1475.75,0.00041095,120]
[334170177,1722807008087,-1475.75,0.00041095,120]
[334170178,1722807008112,-1475.75,0.00041095,120]
[334170179,1722807008136,-1475.75,0.00041095,120]
[334170180,1722807008161,-1475.75,0.00041095,120]
[334170181,1722807008185,-1475.75,0.00041095,120]
[334170182,1722807008209,-1475.75,0.00041095,120]
[334170183,1722807008234,-1475.75,0.00041095,120]
[334170184,1722807008259,-1475.75,0.00041095,120]
[334170185,1722807008285,-1475.75,0.00041095,120]
[334170186,1722807008312,-1475.75,0.00041095,120]
[334170187,1722807008338,-1475.95530829,0.00041095,120]
[334170188,1722807008363,-515.31437867,0.00041095,30]
[334170189,1722807008389,-2024.0,0.00041095,90]
[334170190,1722807008415,-1288.31732165,0.00041095,120]
[334170191,1722807008441,-213.76579669,0.00041096,60]
[334170192,1722807008467,-605.89,0.00041096,30]
[334170193,1722807008493,-173.95,0.00041123,30]
[334170194,1722807008518,-1000.0,0.00041176,30]
[334170195,1722807008544,-2776.97513736,0.0004118,120]
[334170196,1722807008570,-2024.0,0.00041232,90]
[334170197,1722807008595,-1000.0,0.000413,30]
[334170198,1722807008620,-1000.0,0.000413,30]
[334170199,1722807008647,-1000.0,0.00041351,30]
[334170200,1722807008674,-2024.0,0.00041369,90]
[334170201,1722807008700,-150.0,0.00041472,120]
[334170202,1722807008733,-2110.0,0.000415,30]
[334170203,1722807008759,-1000.0,0.000415,120]
[334170204,1722807008784,-1180.0,0.000415,120]
[334170205,1722807008809,-2500.0,0.000415,120]
[334170206,1722807008835,-2024.0,0.00041506,90]
[334170207,1722807008861,-150.0,0.0004152,120]
[334170208,1722807008886,-1000.0,0.00041526,30]
[334170209,1722807008915,-1000.0,0.000416,30]
[334170210,1722807008939,-51931.96738029,0.000416,120]
[334170211,1722807008964,-151.0,0.00041616,120]
[334170212,1722807008990,-1250.0,0.00041643,120]
[334170213,1722807009016,-2024.0,0.00041643,90]
[334170214,1722807009041,-500.0,0.00041644,30]
[334170215,1722807009066,-500.0,0.00041644,30]
[334170216,1722807009093,-267856.08686442,0.000417,45]
[334170217,1722807009119,-1000.0,0.00041701,30]
[334170218,1722807009144,-150.0,0.00041738,120]
[334170219,1722807009169,-2024.0,0.0004178,90]
[334170220,1722807009195,-1000.0,0.00041876,30]
[334170221,1722807009220,-187.56666667,0.0004189,120]
[334170222,1722807009244,-1000.0,0.000419,30]
[334170223,1722807009269,-1250.0,0.00041917,30]
[334170224,1722807009294,-2024.0,0.00041917,90]
[334170225,1722807009318,-664357.7399539,0.0004198,30]
[334170226,1722807009343,-2314991.16387197,0.0004198,30]
[334170227,1722807009370,-50000.0,0.00042,32]
[334170228,1722807009396,-50000.0,0.00042,42]
[334170229,1722807009423,-2110.0,0.00042,30]
[334170230,1722807009448,-654.90553144,0.00042,120]
[334170231,1722807009473,-920.0947112,0.00042,120]
[334170232,1722807009497,-3264.69556186,0.00042,120]
[334170233,1722807009521,-1629.25986513,0.00042,120]
[334170234,1722807009546,-26325.03564791,0.00042,30]
[334170235,1722807009572,-1200.0,0.00042,120]
[334170236,1722807009596,-150.0,0.00042,60]
[334170237,1722807009620,-2500.0,0.00042,120]
[334170238,1722807009646,-3021.58,0.00042,100]
[334170239,1722807009671,-689.0,0.00042,120]
[334170240,1722807009695,-3000.0,0.00042,120]
[334170241,1722807009721,-3000.0,0.00042,120]
[334170242,1722807009745,-3000.0,0.00042,120]
[334170243,1722807009769,-1000.0,0.00042,120]
[334170244,1722807009793,-1000.0,0.00042,120]
[334170245,1722807009817,-1000.0,0.00042,120]
[334170246,1722807009841,-1000.0,0.00042,120]
[334170247,1722807009866,-1000.0,0.00042,120]
[334170248,1722807009890,-1000.0,0.00042,120]
[334170249,1722807009917,-1000.0,0.00042,120]
[334170250,1722807009941,-1000.0,0.00042,120]
[334170251,1722807009968,-1000.0,0.00042,120]
[334170252,1722807009994,-800.73,0.00042,120]
[334170253,1722807010020,-250.0,0.00042,120]
[334170254,1722807010339,-130390.54811683,0.00042,30]
[334170255,1722807013218,499.999999,0.00027,120]
[334170256,1722807016007,-160.0,0.00032679,30]
[334170257,1722807016034,-3424.85333241,0.00032679,30]
[334170258,1722807016059,-284.05775226,0.00032679,30]
[334170259,1722807016082,-1619.0013045,0.00032679,120]
[334170260,1722807016107,-446.42396238,0.00032679,120]
[334170261,1722807016133,-2930.84677594,0.00032679,120]
[334170262,1722807016160,-820.25230806,0.00032679,30]
[334170263,1722807016184,-1200.0,0.00032679,120]
[334170264,1722807016208,-828.09769895,0.00032679,30]
[334170265,1722807016232,-2041.98039462,0.00032679,120]
[334170266,1722807016255,-891.979311,0.00032679,30]
[334170267,1722807016279,-1598.74195629,0.00032679,60]
[334170268,1722807016302,-921.49326649,0.00032679,30]
[334170269,1722807016326,-2568.84499658,0.00032679,120]
[334170270,1722807016349,-1746.42689767,0.00032679,120]
[334170271,1722807016373,-520.80209334,0.00032679,31]
[334170272,1722807016397,-948.1174029,0.00032679,120]
[334170273,1722807016421,-1113.07195181,0.00032679,120]
[334170274,1722807016444,-584.2546195,0.00032679,120]
[334170275,1722807016469,-622.62414749,0.00032679,120]
[334170276,1722807016492,-1791.38854239,0.00032679,120]
[334170277,1722807016516,-319.12930202,0.00032679,120]
[334170278,1722807016542,-2451.78308587,0.00032679,120]
[334170279,1722807016567,-2119.98693665,0.00032679,120]
[334170280,1722807016594,-1000.0,0.00032679,60]
[334170281,1722807016617,-165.31056299,0.00032679,120]
[334170282,1722807016642,-1000.0,0.00032679,30]
[334170283,1722807016666,-181.74282822,0.00032679,30]
[334170284,1722807016690,-199.94014253,0.00032679,120]
[334170285,1722807016714,-585.68488867,0.00032679,120]
[334170286,1722807016738,-294.1439466,0.00032679,30]
[334170287,1722807016765,-1000.0,0.00032679,60]
[334170288,1722807016790,-1573.01250659,0.00032679,120]
[334170289,1722807016816,-904.47734826,0.00032679,120]
[334170290,1722807016843,-227.68206712,0.00032679,120]
[334170291,1722807016868,-610.99680508,0.00032679,120]
[334170292,1722807016893,-847.61648131,0.00032679,30]
[334170293,1722807016920,-1000.0,0.00032679,120]
[334170294,1722807016944,-178.48299163,0.00032679,120]
[334170295,1722807016969,-1004.97074515,0.00032679,30]
[334170296,1722807016997,-50000.0,0.00032679,30]
[334170297,1722807017021,-1000.0,0.00032679,30]
[334170298,1722807017045,-265.95906763,0.00032679,120]
[334170299,1722807017068,-951.34327666,0.00032679,120]
[334170300,1722807017094,-2783.08294088,0.00032679,120]
[334170301,1722807017122,-50000.0,0.00032679,31]
[334170302,1722807017146,-1221.65660043,0.00032679,120]
[334170303,1722807017172,-50000.0,0.00032679,32]
[334170304,1722807017198,-1933.78212552,0.00032679,120]
[334170305,1722807017222,-2300.01785836,0.00032679,120]
[334170306,1722807017247,-1000.0,0.00032679,30]
[334170307,1722807017272,-181.63907054,0.00032679,30]
[334170308,1722807017296,-326.29718325,0.00032679,30]
[334170309,1722807017320,-571.46074022,0.00032679,120]
[334170310,1722807017345,-288.52856919,0.00032679,31]
[334170311,1722807017372,-1727.43212456,0.00032679,30]
[334170312,1722807017397,-2807.8495453,0.00032679,30]
[334170313,1722807017427,-50000.0,0.00032679,33]
[334170314,1722807017452,-1402.90512302,0.00032679,30]
[334170315,1722807017477,-746.04662019,0.00032679,30]
[334170316,1722807017502,-1097.09325722,0.00032679,30]
[334170317,1722807017526,-756.0,0.00032679,120]
[334170318,1722807017551,-846.14470672,0.00032679,120]
[334170319,1722807017575,-1632.30456053,0.00032679,120]
[334170320,1722807017599,-3008.75254916,0.00032679,120]
[334170321,1722807017623,-1000.0,0.00032679,30]
[334170322,1722807017648,-1000.0,0.00032679,30]
[334170323,1722807017672,-1000.0,0.00032679,60]
[334170324,1722807017696,-1000.0,0.00032679,120]
[334170325,1722807017721,-1000.0,0.00032679,30]
[334170326,1722807017745,-1000.0,0.00032679,60]
[334170327,1722807017769,-800.14362335,0.00032679,30]
[334170328,1722807017792,-1000.0,0.00032679,120]
[334170329,1722807017817,-1000.0,0.00032679,60]
[334170330,1722807017842,-1000.0,0.00032679,60]
[334170331,1722807017867,-1000.0,0.00032679,30]
[334170332,1722807017891,-1000.0,0.00032679,30]
[334170333,1722807017917,-1000.0,0.00032679,60]
[334170334,1722807017943,-1000.0,0.00032679,60]
[334170335,1722807018304,-1000.0,0.00032679,30]
[334170336,1722807018331,-1000.0,0.00032679,120]
[334170337,1722807018358,-1000.0,0.00032679,60]
[334170338,1722807018383,-1000.0,0.00032679,60]
[334170339,1722807018411,-1000.0,0.00032679,30]
[334170340,1722807018437,-1000.0,0.00032679,30]
[334170341,1722807018464,-1000.0,0.00032679,60]
[334170342,1722807018490,-1000.0,0.00032679,30]
[334170343,1722807018515,-1000.0,0.00032679,120]
[334170344,1722807018540,-1000.0,0.00032679,30]
[334170345,1722807018564,-1000.0,0.00032679,60]
[334170346,1722807018589,-1000.0,0.00032679,120]
[334170347,1722807018613,-1000.0,0.00032679,30]
[334170348,1722807018638,-1000.0,0.00032679,30]
[334170349,1722807018662,-1000.0,0.00032679,30]
[334170350,1722807018686,-1000.0,0.00032679,60]